fUST/lending_fUST_20240923
["ID","MTS","AMOUNT","RATE_DAILY","PERIOD"]
[338920329,1727075441651,-502.40698252,0.00038356,120]
[338920330,1727075441660,-500.0,0.00038356,120]
[338920331,1727075441670,-500.0,0.00038356,120]
[338920332,1727075441679,-501.37712453,0.00038356,120]
[338920333,1727075441689,-500.0,0.00038356,120]
[338920334,1727075441699,-500.0,0.00038356,120]
[338920335,1727075441708,-500.0,0.00038356,120]
[338920336,1727075441718,-500.0,0.00038356,120]
[338920337,1727075441727,-500.0,0.00038356,120]
[338920338,1727075441737,-500.0,0.00038356,120]
[338920339,1727075441746,-500.0,0.00038356,120]
[338920340,1727075441755,-159.33506277,0.00038356,120]
[338920341,1727075441977,-120.9259482,0.00038356,120]
[338920342,1727075442003,-219.73898903,0.00038356,120]
[338920343,1727075442012,-115.73753044,0.00038356,30]
[338920344,1727075442024,-384.26246956,0.00038356,30]
[338920345,1727075442034,-501.1217324,0.00038356,120]
[338920346,1727075442044,-500.0,0.00038356,120]
[338920347,1727075442054,-231.18653136,0.00038356,120]
[338920367,1727075443311,-545.45696972,0.00038346,3]
[338920368,1727075443327,-7.33303028,0.00038346,3]
[338920369,1727075443337,-268.81346864,0.00038356,120]
[338920370,1727075443346,-531.79572264,0.00038356,120]
[338920371,1727075443355,-500.0,0.00038356,120]
[338920372,1727075443365,-500.0,0.00038356,120]
[338920373,1727075443374,-500.0,0.00038356,120]
[338920374,1727075443383,-502.04094679,0.00038356,120]
[338920375,1727075443392,-500.0,0.00038356,120]
[338920376,1727075443401,-182.99165476,0.00038356,120]
[338920377,1727075443411,-500.0,0.00038356,120]
[338920378,1727075443420,-500.0,0.00038356,120]
[338920379,1727075443428,-500.0,0.00038356,120]
[338920380,1727075443438,-500.0,0.00038356,120]
[338920381,1727075443447,-500.0,0.00038356,2]
[338920382,1727075443456,-648.14490353,0.00038356,120]
[338920383,1727075443465,-502.33171383,0.00038356,120]
[338920384,1727075443474,-509.64841224,0.00038356,120]
[338920385,1727075443484,-633.61899562,0.00038356,120]
[338920386,1727075443493,-324.28611816,0.00038356,120]
[338920387,1727075443503,-500.0,0.00038356,120]
[338920388,1727075443512,-500.0,0.00038356,120]
[338920389,1727075443522,-500.0,0.00038356,120]
[338920390,1727075443532,-500.0,0.00038356,120]
[338920391,1727075443541,-500.0,0.00038356,120]
[338920392,1727075443550,-500.0,0.00038356,120]
[338920393,1727075443559,-500.0,0.00038356,120]
[338920394,1727075443569,-331.40431596,0.00038356,120]
[338920395,1727075443578,-502.21243142,0.00038356,10]
[338920397,1727075443591,-512.27040128,0.00038356,120]
[338920398,1727075443600,-500.0,0.00038356,120]
[338920400,1727075443611,-504.64082833,0.00038356,120]
[338920402,1727075443621,-500.0,0.00038356,25]
[338920404,1727075443630,-500.0,0.00038356,120]
[338920406,1727075443641,-500.0,0.00038356,120]
[338920408,1727075443650,-507.64525806,0.00038356,120]
[338920410,1727075443660,-500.0,0.00038356,120]
[338920412,1727075443669,-151.0,0.00038356,14]
[338920414,1727075443679,-151.0,0.00038356,14]
[338920416,1727075443689,-151.0,0.00038356,14]
[338920418,1727075443699,-500.0,0.00038356,120]
[338920420,1727075443708,-500.0,0.00038356,120]
[338920422,1727075443717,-500.0,0.00038356,120]
[338920424,1727075443726,-520.36182734,0.00038356,120]
[338920426,1727075443735,-500.0,0.00038356,120]
[338920428,1727075443744,-500.0,0.00038356,120]
[338920430,1727075443754,-500.0,0.00038356,120]
[338920431,1727075443763,-500.0,0.00038356,120]
[338920433,1727075443772,-500.0,0.00038356,2]
[338920436,1727075443781,-151.0,0.00038356,14]
[338920437,1727075443791,-151.0,0.00038356,14]
[338920439,1727075443800,-550.35418338,0.00038356,120]
[338920441,1727075443809,-151.0,0.00038356,14]
[338920442,1727075443819,-500.0,0.00038356,120]
[338920443,1727075443827,-10594.71,0.00038356,18]
[338920444,1727075443836,-222.28605357,0.00038356,120]
[338920445,1727075443845,-493.65810684,0.00038356,120]
[338920446,1727075443854,-507.61860167,0.00038356,120]
[338920447,1727075443869,-500.0,0.00038356,120]
[338920448,1727075443879,-500.0,0.00038356,120]
[338920449,1727075443888,-500.0,0.00038356,120]
[338920450,1727075443898,-1497.37,0.00038356,21]
[338920451,1727075443907,-500.0,0.00038356,120]
[338920452,1727075443916,-500.0,0.00038356,120]
[338920453,1727075443925,-500.0,0.00038356,120]
[338920454,1727075443934,-500.0,0.00038356,120]
[338920455,1727075443943,-261.61400047,0.00038356,120]
[338920456,1727075443952,-500.0,0.00038356,120]
[338920457,1727075443963,-621.01364891,0.00038356,120]
[338920458,1727075443972,-500.0,0.00038356,120]
[338920459,1727075443981,-500.0,0.00038356,120]
[338920460,1727075443990,-500.0,0.00038356,120]
[338920461,1727075443998,-524.80934198,0.00038356,120]
[338920462,1727075444008,-500.0,0.00038356,120]
[338920463,1727075444017,-500.0,0.00038356,120]
[338920464,1727075444033,-500.0,0.00038356,120]
[338920465,1727075444042,-497.11498287,0.00038356,120]
[338920466,1727075444050,-500.0,0.00038356,120]
[338920467,1727075444059,-629.90799451,0.00038356,120]
[338920468,1727075444069,-500.0,0.00038356,120]
[338920469,1727075444078,-500.0,0.00038356,120]
[338920470,1727075444087,-500.0,0.00038356,120]
[338920471,1727075444097,-500.0,0.00038356,120]
[338920472,1727075444106,-300.24615971,0.00038356,120]
[338920473,1727075444117,-500.0,0.00038356,120]
[338920474,1727075444126,-500.0,0.00038356,120]
[338920475,1727075444135,-375.4296555,0.00038356,120]
[338920476,1727075444144,-500.0,0.00038356,120]
[338920477,1727075444157,-506.50125591,0.00038356,120]
[338920478,1727075444166,-500.0,0.00038356,120]
[338920479,1727075444175,-500.0,0.00038356,120]
[338920480,1727075444185,-500.0,0.00038356,120]
[338920481,1727075444195,-500.0,0.00038356,120]
[338920482,1727075444204,-500.0,0.00038356,120]
[338920483,1727075444214,-501.33452736,0.00038356,120]
[338920484,1727075444223,-500.0,0.00038356,120]
[338920485,1727075444233,-500.0,0.00038356,120]
[338920486,1727075444242,-500.0,0.00038356,120]
[338920487,1727075444252,-500.0,0.00038356,120]
[338920488,1727075444261,-500.0,0.00038356,120]
[338920489,1727075444271,-510.97820091,0.00038356,120]
[338920490,1727075444280,-500.0,0.00038356,120]
[338920491,1727075444289,-500.0,0.00038356,120]
[338920492,1727075444298,-515.329322,0.00038356,120]
[338920493,1727075444307,-500.0,0.00038356,120]
[338920494,1727075444316,-500.0,0.00038356,120]
[338920495,1727075444326,-500.0,0.00038356,120]
[338920496,1727075444335,-500.0,0.00038356,120]
[338920497,1727075444344,-500.0,0.00038356,120]
[338920498,1727075444354,-598.99617729,0.00038356,120]
[338920500,1727075444366,-500.0,0.00038356,120]
[338920501,1727075444375,-500.0,0.00038356,120]
[338920502,1727075444384,-500.0,0.00038356,120]
[338920503,1727075444393,-500.0,0.00038356,120]
[338920504,1727075444476,-509.2730718,0.00038356,120]
[338920505,1727075444485,-500.0,0.00038356,120]
[338920506,1727075444495,-500.0,0.00038356,120]
[338920507,1727075444504,-500.0,0.00038356,120]
[338920508,1727075444513,-284.96497796,0.00038356,120]
[338920509,1727075444522,-500.0,0.00038356,120]
[338920510,1727075444531,-500.0,0.00038356,120]
[338920511,1727075444540,-500.0,0.00038356,5]
[338920512,1727075444549,-500.0,0.00038356,5]
[338920513,1727075444559,-500.0,0.00038356,5]
[338920514,1727075444568,-484.44,0.00038356,5]
[338920515,1727075444576,-519.33672888,0.00038356,120]
[338920516,1727075444586,-500.0,0.00038356,120]
[338920517,1727075444596,-500.0,0.00038356,120]
[338920518,1727075444606,-500.0,0.00038356,120]
[338920519,1727075444616,-152.25584,0.00038356,14]
[338920520,1727075444627,-500.0,0.00038356,120]
[338920521,1727075444635,-500.0,0.00038356,120]
[338920522,1727075444645,-152.25584,0.00038356,14]
[338920523,1727075444654,-152.25584,0.00038356,14]
[338920524,1727075444665,-500.0,0.00038356,120]
[338920525,1727075444674,-152.25584,0.00038356,14]
[338920526,1727075444683,-512.06636884,0.00038356,120]
[338920527,1727075444692,-152.25584,0.00038356,14]
[338920528,1727075444701,-152.25584,0.00038356,14]
[338920529,1727075444710,-164.71797077,0.00038356,120]
[338920530,1727075444720,-500.0,0.00038356,120]
[338920531,1727075444730,-500.0,0.00038356,120]
[338920532,1727075444739,-151.0316965,0.00038356,120]
[338920533,1727075444748,-500.0,0.00038356,120]
[338920534,1727075444757,-504.0459854,0.00038356,120]
[338920535,1727075444767,-500.0,0.00038356,120]
[338920536,1727075444777,-197.59798213,0.00038356,120]
[338920537,1727075444787,-171.55641203,0.00038356,120]
[338920538,1727075444796,-500.0,0.00038356,120]
[338920539,1727075444805,-515.6580636,0.00038356,120]
[338920540,1727075444814,-500.0,0.00038356,120]
[338920541,1727075444824,-506.12506814,0.00038356,120]
[338920542,1727075444833,-745.7,0.00038356,120]
[338920543,1727075444842,-500.0,0.00038356,120]
[338920544,1727075444852,-341.67961919,0.00038356,120]
[338920545,1727075444862,-555.72775668,0.00038356,120]
[338920546,1727075444872,-500.0,0.00038356,120]
[338920547,1727075444881,-500.0,0.00038356,120]
[338920548,1727075444891,-251.76706118,0.00038356,120]
[338920549,1727075444900,-182.44899978,0.00038356,120]
[338920550,1727075444910,-500.0,0.00038356,120]
[338920551,1727075444918,-151.0,0.00038356,14]
[338920552,1727075444928,-151.0,0.00038356,14]
[338920553,1727075444938,-161.257234,0.00038356,14]
[338920554,1727075444948,-500.0,0.00038356,120]
[338920555,1727075444957,-500.0,0.00038356,120]
[338920556,1727075444967,-500.32991178,0.00038356,2]
[338920557,1727075444976,-521.37565026,0.00038356,120]
[338920558,1727075444986,-500.0,0.00038356,120]
[338920559,1727075444995,-506.9723653,0.00038356,120]
[338920560,1727075445004,-500.0,0.00038356,120]
[338920561,1727075445013,-500.0,0.00038356,120]
[338920562,1727075445022,-500.0,0.00038356,120]
[338920563,1727075445032,-500.0,0.00038356,120]
[338920564,1727075445041,-500.0,0.00038356,120]
[338920565,1727075445051,-500.0,0.00038356,120]
[338920566,1727075445061,-500.0,0.00038356,120]
[338920567,1727075445071,-151.0,0.00038356,14]
[338920568,1727075445080,-226.701296,0.00038356,14]
[338920569,1727075445090,-500.0,0.00038356,120]
[338920570,1727075445099,-500.0,0.00038356,120]
[338920571,1727075445109,-515.30632266,0.00038356,2]
[338920572,1727075445125,-500.0,0.00038356,120]
[338920573,1727075445134,-500.0,0.00038356,120]
[338920574,1727075445144,-659.93,0.00038356,120]
[338920575,1727075445154,-500.0,0.00038356,120]
[338920576,1727075445163,-500.0,0.00038356,120]
[338920577,1727075445173,-288.54725829,0.00038373,5]
[338920578,1727075445182,-5416.66,0.00038426,120]
[338920579,1727075445192,-151.0,0.00038436,15]
[338920580,1727075445201,-1232.98820069,0.00038463,2]
[338920581,1727075445211,-151.0,0.00038472,14]
[338920582,1727075445220,-151.0,0.00038472,14]
[338920583,1727075445230,-151.0,0.00038472,14]
[338920584,1727075445239,-5416.66,0.00038472,120]
[338920585,1727075445249,-5416.66,0.00038472,120]
[338920586,1727075445258,-5416.66,0.00038472,120]
[338920587,1727075445269,-5416.66,0.00038472,120]
[338920588,1727075445279,-5416.66,0.00038472,120]
[338920589,1727075445289,-5416.82,0.00038472,120]
[338920590,1727075445299,-500.44491158,0.00038473,5]
[338920591,1727075445308,-500.0,0.00038473,5]
[338920592,1727075445318,-151.0,0.00038473,14]
[338920593,1727075445328,-151.0,0.00038473,14]
[338920594,1727075445338,-151.0,0.00038473,14]
[338920595,1727075445348,-192.73768655,0.00038473,5]
[338920596,1727075445357,-385.4753731,0.00038483,5]
[338920597,1727075445371,-151.0,0.00038483,14]
[338920598,1727075445380,-151.0,0.00038483,14]
[338920599,1727075445389,-151.0,0.00038483,14]
[338920600,1727075445398,-151.0,0.00038483,14]
[338920601,1727075445407,-151.0,0.00038483,14]
[338920602,1727075445417,-151.0,0.00038483,14]
[338920603,1727075445426,-151.0,0.00038483,14]
[338920604,1727075445436,-151.0,0.00038483,14]
[338920605,1727075445445,-151.0,0.00038493,14]
[338920606,1727075445455,-151.0,0.00038493,14]
[338920607,1727075445464,-500.0,0.00038493,120]
[338920608,1727075445473,-500.0,0.00038493,120]
[338920609,1727075445483,-500.0,0.00038493,120]
[338920610,1727075445492,-500.0,0.00038493,7]
[338920611,1727075445502,-500.0,0.00038493,120]
[338920612,1727075445511,-500.0,0.00038493,120]
[338920613,1727075445521,-500.0,0.00038493,120]
[338920614,1727075445530,-500.0,0.00038493,120]
[338920615,1727075445539,-325.92842311,0.00038493,120]
[338920616,1727075445548,-500.0,0.00038493,120]
[338920617,1727075445557,-151.0,0.00038493,14]
[338920618,1727075445566,-503.98083127,0.00038493,120]
[338920619,1727075445576,-510.5781991,0.00038493,120]
[338920621,1727075445586,-500.0,0.00038493,120]
[338920623,1727075445595,-500.0,0.00038493,120]
[338920624,1727075445604,-500.0,0.00038493,120]
[338920625,1727075445616,-500.0,0.00038493,120]
[338920626,1727075445626,-500.0,0.00038493,30]
[338920627,1727075445637,-500.0,0.00038493,7]
[338920628,1727075445646,-500.0,0.00038493,120]
[338920629,1727075445656,-500.0,0.00038493,120]
[338920630,1727075445665,-500.0,0.00038493,120]
[338920631,1727075445675,-500.0,0.00038493,120]
[338920632,1727075445684,-501.1962785,0.00038493,120]
[338920633,1727075445694,-500.0,0.00038493,120]
[338920634,1727075445703,-462.68867969,0.00038493,120]
[338920635,1727075445712,-500.0,0.00038493,120]
[338920636,1727075445722,-500.0,0.00038493,120]
[338920637,1727075445733,-500.0,0.00038493,120]
[338920638,1727075445742,-500.0,0.00038493,120]
[338920639,1727075445751,-550.71491705,0.00038493,120]
[338920640,1727075445760,-500.0,0.00038493,120]
[338920641,1727075445769,-500.0,0.00038493,120]
[338920642,1727075445778,-505.62766206,0.00038493,120]
[338920643,1727075445787,-500.0,0.00038493,120]
[338920644,1727075445797,-500.0,0.00038493,120]
[338920645,1727075445806,-505.64743333,0.00038493,120]
[338920646,1727075445815,-500.0,0.00038493,120]
[338920647,1727075445824,-500.0,0.00038493,120]
[338920648,1727075445833,-500.0,0.00038493,120]
[338920649,1727075445842,-500.0,0.00038493,120]
[338920650,1727075445852,-500.0,0.00038493,120]
[338920651,1727075445863,-500.0,0.00038493,120]
[338920652,1727075445872,-500.0,0.00038493,120]
[338920654,1727075445881,-500.0,0.00038493,120]
[338920656,1727075445890,-500.0,0.00038493,120]
[338920657,1727075445899,-500.0,0.00038493,120]
[338920658,1727075445908,-510.63670388,0.00038493,120]
[338920659,1727075445917,-1000.0,0.00038493,30]
[338920660,1727075445926,-500.0,0.00038493,120]
[338920661,1727075445936,-500.0,0.00038493,120]
[338920662,1727075445945,-500.0,0.00038493,120]
[338920663,1727075445955,-500.0,0.00038493,120]
[338920664,1727075445964,-151.0,0.00038493,14]
[338920665,1727075445974,-500.0,0.00038493,30]
[338920666,1727075445983,-500.0,0.00038493,120]
[338920667,1727075445992,-500.0,0.00038493,120]
[338920668,1727075446002,-500.0,0.00038493,120]
[338920669,1727075446011,-500.0,0.00038493,120]
[338920670,1727075446020,-500.0,0.00038493,120]
[338920671,1727075446029,-500.0,0.00038493,120]
[338920672,1727075446038,-500.0,0.00038493,120]
[338920673,1727075446048,-500.0,0.00038493,120]
[338920674,1727075446058,-500.0,0.00038493,120]
[338920675,1727075446067,-502.01387736,0.00038493,120]
[338920676,1727075446078,-500.0,0.00038493,120]
[338920678,1727075446088,-507.42126681,0.00038493,120]
[338920679,1727075446097,-500.0,0.00038493,120]
[338920681,1727075446106,-500.0,0.00038493,120]
[338920683,1727075446119,-500.0,0.00038493,120]
[338920684,1727075446128,-164.52728169,0.00038493,120]
[338920685,1727075446137,-500.0,0.00038493,120]
[338920686,1727075446211,-504.37974394,0.00038493,120]
[338920687,1727075446221,-500.0,0.00038493,120]
[338920688,1727075446230,-500.0,0.00038493,120]
[338920689,1727075446239,-500.0,0.00038493,120]
[338920690,1727075446248,-151.0,0.00038493,14]
[338920691,1727075446257,-500.0,0.00038493,30]
[338920692,1727075446266,-214.214338,0.00038493,14]
[338920693,1727075446276,-500.0,0.00038493,120]
[338920694,1727075446285,-500.0,0.00038493,120]
[338920695,1727075446294,-500.0,0.00038493,120]
[338920696,1727075446303,-500.0,0.00038493,120]
[338920697,1727075446313,-500.0,0.00038493,120]
[338920698,1727075446321,-500.0,0.00038493,120]
[338920699,1727075446331,-500.0,0.00038493,120]
[338920700,1727075446340,-500.0,0.00038493,120]
[338920701,1727075446350,-527.50115316,0.00038493,120]
[338920702,1727075446360,-500.96483474,0.00038493,120]
[338920703,1727075446369,-500.0,0.00038493,120]
[338920704,1727075446379,-200.0,0.00038493,120]
[338920705,1727075446388,-500.0,0.00038493,7]
[338920706,1727075446397,-504.35706361,0.00038493,120]
[338920707,1727075446406,-500.0,0.00038493,120]
[338920708,1727075446416,-500.0,0.00038493,120]
[338920709,1727075446425,-500.0,0.00038493,120]
[338920710,1727075446435,-508.13760948,0.00038493,120]
[338920711,1727075446444,-503.7397769,0.00038493,120]
[338920712,1727075446453,-500.0,0.00038493,120]
[338920713,1727075446462,-500.0,0.00038493,120]
[338920714,1727075446471,-500.0,0.00038493,120]
[338920715,1727075446481,-500.0,0.00038493,120]
[338920716,1727075446490,-503.54545512,0.00038493,120]
[338920717,1727075446499,-500.0,0.00038493,120]
[338920718,1727075446508,-522.87068222,0.00038493,120]
[338920719,1727075446517,-560.17,0.00038493,120]
[338920720,1727075446526,-500.0,0.00038493,120]
[338920721,1727075446535,-504.51299448,0.00038493,120]
[338920722,1727075446544,-500.0,0.00038493,2]
[338920723,1727075446554,-500.0,0.00038493,120]
[338920724,1727075446563,-502.39736104,0.00038493,120]
[338920725,1727075446572,-500.0,0.00038493,120]
[338920726,1727075446582,-500.0,0.00038493,120]
[338920727,1727075446593,-500.0,0.00038493,120]
[338920728,1727075446603,-500.0,0.00038493,120]
[338920729,1727075446614,-500.0,0.00038493,120]
[338920730,1727075446625,-500.0,0.00038493,120]
[338920731,1727075446635,-509.02629871,0.00038493,30]
[338920732,1727075446644,-500.0,0.00038493,120]
[338920733,1727075446654,-500.0,0.00038493,120]
[338920734,1727075446663,-500.0,0.00038493,120]
[338920735,1727075446674,-500.0,0.00038493,120]
[338920736,1727075446684,-232.36,0.00038493,120]
[338920737,1727075446694,-500.0,0.00038493,120]
[338920738,1727075446703,-500.0,0.00038493,120]
[338920739,1727075446712,-500.0,0.00038493,120]
[338920740,1727075446722,-519.06807865,0.00038493,120]
[338920741,1727075446731,-500.0,0.00038493,2]
[338920742,1727075446739,-500.0,0.00038493,120]
[338920743,1727075446749,-500.0,0.00038493,120]
[338920744,1727075446758,-500.0,0.00038493,120]
[338920745,1727075446767,-500.0,0.00038493,120]
[338920746,1727075446777,-553.26371362,0.00038493,120]
[338920747,1727075446787,-500.0,0.00038493,120]
[338920748,1727075446796,-500.0,0.00038493,120]
[338920749,1727075446805,-500.0,0.00038493,120]
[338920750,1727075446815,-500.0,0.00038493,25]
[338920751,1727075446825,-500.0,0.00038493,120]
[338920752,1727075446834,-500.0,0.00038493,120]
[338920753,1727075446843,-593.65926069,0.00038493,120]
[338920754,1727075446853,-500.0,0.00038493,120]
[338920755,1727075446863,-151.0,0.00038493,14]
[338920756,1727075446872,-222.471292,0.00038493,14]
[338920757,1727075446882,-500.0,0.00038493,120]
[338920758,1727075446891,-232.97597651,0.00038493,120]
[338920759,1727075446900,-500.0,0.00038493,120]
[338920760,1727075446910,-500.0,0.00038493,120]
[338920761,1727075446919,-496.2574371,0.00038493,120]
[338920762,1727075446928,-500.0,0.00038493,120]
[338920763,1727075446937,-151.0,0.00038493,14]
[338920764,1727075446946,-522.85361543,0.00038493,120]
[338920765,1727075446955,-10594.71,0.00038493,18]
[338920766,1727075446965,-151.0,0.00038493,14]
[338920767,1727075446974,-472.40162773,0.00038493,120]
[338920768,1727075446983,-500.0,0.00038493,120]
[338920769,1727075446992,-1497.37,0.00038493,21]
[338920770,1727075447001,-500.0,0.00038493,120]
[338920771,1727075447010,-500.0,0.00038493,120]
[338920772,1727075447019,-425.03760307,0.00038493,120]
[338920773,1727075447028,-500.0,0.00038493,120]
[338920774,1727075447037,-500.0,0.00038493,120]
[338920775,1727075447046,-165.01745922,0.00038493,120]
[338920776,1727075447055,-500.0,0.00038493,120]
[338920777,1727075447064,-511.09097769,0.00038493,120]
[338920778,1727075447073,-500.0,0.00038493,120]
[338920779,1727075447082,-500.0,0.00038493,120]
[338920780,1727075447091,-407.66209734,0.00038493,120]
[338920781,1727075447100,-445.56311984,0.00038493,120]
[338920782,1727075447109,-613.34471511,0.00038493,120]
[338920783,1727075447120,-500.0,0.00038493,120]
[338920784,1727075447129,-504.82078119,0.00038493,120]
[338920785,1727075447138,-500.0,0.00038493,120]
[338920786,1727075447147,-521.59041485,0.00038493,120]
[338920787,1727075447156,-386.27584078,0.00038493,120]
[338920788,1727075447165,-500.0,0.00038493,120]
[338920789,1727075447174,-413.06271225,0.00038493,120]
[338920790,1727075447184,-503.97426203,0.00038493,120]
[338920791,1727075447194,-500.0,0.00038493,120]
[338920792,1727075447203,-500.0,0.00038493,120]
[338920793,1727075447212,-500.0,0.00038493,120]
[338920794,1727075447222,-500.0,0.00038493,120]
[338920795,1727075447231,-500.0,0.00038493,120]
[338920796,1727075447241,-395.52590809,0.00038493,120]
[338920797,1727075447250,-326.35224083,0.00038493,120]
[338920798,1727075447260,-500.0,0.00038493,120]
[338920799,1727075447270,-158.82163982,0.00038493,120]
[338920800,1727075447280,-500.0,0.00038493,120]
[338920801,1727075447290,-500.0,0.00038493,120]
[338920802,1727075447299,-500.0,0.00038493,120]
[338920803,1727075447308,-552.9021628,0.00038493,120]
[338920804,1727075447318,-500.0,0.00038493,120]
[338920805,1727075447327,-519.57491141,0.00038493,120]
[338920806,1727075447337,-500.0,0.00038493,120]
[338920807,1727075447346,-500.0,0.00038493,120]
[338920808,1727075447355,-500.0,0.00038493,120]
[338920809,1727075447365,-541.86758589,0.00038493,120]
[338920810,1727075447375,-500.0,0.00038493,120]
[338920811,1727075447385,-386.85348709,0.00038493,120]
[338920812,1727075447395,-221.56036132,0.00038493,120]
[338920813,1727075447404,-500.0,0.00038493,120]
[338920814,1727075447414,-500.0,0.00038493,120]
[338920815,1727075447424,-500.0,0.00038493,120]
[338920816,1727075447434,-500.0,0.00038493,120]
[338920817,1727075447444,-500.0,0.00038493,120]
[338920818,1727075447454,-501.88323805,0.00038493,120]
[338920819,1727075447463,-500.0,0.00038493,120]
[338920820,1727075447473,-152.25584,0.00038493,14]
[338920821,1727075447483,-152.25584,0.00038493,14]
[338920822,1727075447493,-500.0,0.00038493,120]
[338920823,1727075447503,-152.25584,0.00038493,14]
[338920824,1727075447512,-152.25584,0.00038493,14]
[338920825,1727075447522,-500.0,0.00038493,120]
[338920826,1727075447532,-500.0,0.00038493,120]
[338920827,1727075447541,-500.0,0.00038493,120]
[338920828,1727075447551,-500.0,0.00038493,120]
[338920829,1727075447560,-500.0,0.00038493,120]
[338920830,1727075447570,-236.59541551,0.00038493,120]
[338920831,1727075447580,-500.0,0.00038493,120]
[338920832,1727075447590,-745.7,0.00038493,120]
[338920833,1727075447599,-500.0,0.00038493,120]
[338920834,1727075447610,-500.0,0.00038493,120]
[338920835,1727075447623,-502.07302682,0.00038493,120]
[338920836,1727075447633,-511.57586212,0.00038493,120]
[338920837,1727075447642,-500.0,0.00038493,120]
[338920838,1727075447652,-500.0,0.00038493,120]
[338920839,1727075447662,-559.55544972,0.00038493,120]
[338920840,1727075447671,-500.0,0.00038493,120]
[338920841,1727075447681,-500.0,0.00038493,120]
[338920842,1727075447691,-500.0,0.00038493,120]
[338920843,1727075447700,-619.54610593,0.00038493,120]
[338920844,1727075447710,-523.56083959,0.00038493,120]
[338920845,1727075447719,-524.87069569,0.00038493,120]
[338920846,1727075447729,-500.0,0.00038493,120]
[338920847,1727075447801,-500.0,0.00038493,120]
[338920848,1727075447811,-500.0,0.00038493,120]
[338920849,1727075447819,-204.85541063,0.00038493,120]
[338920850,1727075447829,-659.93,0.00038493,120]
[338920851,1727075447838,-195.57,0.000385,14]
[338920852,1727075447848,-3570.3,0.000385,14]
[338920853,1727075447857,-2008.76,0.000385,14]
[338920854,1727075447868,-8718.57,0.000385,14]
[338920855,1727075447878,-150.03,0.000385,30]
[338920856,1727075447888,-192.73768655,0.00038543,5]
[338920857,1727075447899,-151.0,0.00038548,120]
[338920858,1727075447908,-312.264526,0.0003862,14]
[338920859,1727075447918,-312.264526,0.0003862,14]
[338920860,1727075447928,-151.0,0.0003862,14]
[338920861,1727075447937,-151.0,0.0003862,14]
[338920862,1727075447947,-151.0,0.0003862,14]
[338920863,1727075447957,-151.0,0.0003863,14]
[338920864,1727075447966,-151.0,0.0003863,14]
[338920865,1727075447975,-500.0,0.0003863,120]
[338920866,1727075447985,-341.44592396,0.0003863,120]
[338920867,1727075447995,-500.0,0.0003863,120]
[338920868,1727075448005,-500.0,0.0003863,7]
[338920869,1727075448014,-500.0,0.0003863,120]
[338920870,1727075448024,-500.0,0.0003863,120]
[338920871,1727075448034,-500.0,0.0003863,120]
[338920872,1727075448044,-500.0,0.0003863,120]
[338920873,1727075448054,-500.0,0.0003863,120]
[338920874,1727075448064,-151.0,0.0003863,14]
[338920875,1727075448074,-500.0,0.0003863,120]
[338920876,1727075448083,-500.0,0.0003863,120]
[338920877,1727075448093,-500.0,0.0003863,120]